Workbook

Sheet 2 Variables
A1: Multivariate Linear Regression | L1: Enter the data values in the cells below:
M2: Y | N2: X1 | O2: X2
B3: This DIGMath module lets you find the best | L3: 1 | M3: 1 | N3: 6 | O3: 55
B4: multivariate linear fit -- the regression plane -- | L4: 2 | M4: 15 | N4: 8 | O4: 53
C5: to fit a set of (X1, X2, Y) data | L5: 3 | M5: 32 | N5: 11 | O5: 56
C6: with 2 independent variables. | L6: 4 | M6: 46 | N6: 21 | O6: 59
L7: 5 | M7: 60 | N7: 17 | O7: 63
A8: How many data points, n, between 3 and 50? | L8: 6 | M8: 74 | N8: 25 | O8: 67
B9: n = | C9: =E9 -> 18 | E9: 18 | L9: 7 | M9: 91 | N9: 29 | O9: 72
L10: 8 | M10: 105 | N10: 31 | O10: 77
L11: 9 | M11: 121 | N11: 27 | O11: 81
A12: Based on your data, | L12: 10 | M12: 135 | N12: 37 | O12: 84
A13: the equation of the multivariate regression equation is | L13: 11 | M13: 152 | N13: 41 | O13: 89
L14: 12 | M14: 196 | N14: 48 | O14: 98
C15: Y = | D15: =a -> 3.381566698 | E15: X1 | F15: =IF(b>=0,"+","-") -> + | G15: =ABS(b) -> 1.200703446 | H15: X2 | I15: =IF(c0>=0,"+","-") -> - | J15: =ABS(c0) -> 83.09956177 | L15: 13 | M15: 213 | N15: 55 | O15: 99
L16: 14 | M16: 227 | N16: 51 | O16: 98
L17: 15 | M17: 244 | N17: 63 | O17: 94
B18: The Sum of the Squares = | G18: =Sheet2!J53 -> 1602.761357 | L18: 16 | M18: 258 | N18: 69 | O18: 90
L19: 17 | M19: 274 | N19: 75 | O19: 85
L20: 18 | M20: 288 | N20: 80 | O20: 80
B21: The coefficient of multiple determination = | J21: =Sheet2!C64 -> 0.9893845616 | L21: 19 | M21: 305 | N21: 88 | O21: 72
C22: so that | D22: =100*J21 -> 98.93845616 | E22: % of the variation is | L22: 20 | M22: 319 | N22: 93 | O22: 66
F23: explained by the linear function | L23: 21 | M23: 335 | N23: 97 | O23: 61
L24: 22 | M24: 349 | N24: 103 | O24: 58
L25: 23
L26: 24
L27: 25
A28: Click each item below for suggestions and investigations | L28: 26
C29: Item 1 | L29: 27
C30: Item 2 | L30: 28
C31: Item 3 | L31: 29
L32: 30
L33: 31
L34: 32
L35: 33
L36: 34
B37: Created by: Sheldon P. Gordon | L37: 35
B38: Farmingdale StateCollege | L38: 36
B39: Development of this module was supported by the | L39: 37
B40: NSF's Division of Undergraduate Education | L40: 38
B41: under grants DUE-0310123 and DUE-0442160. | L41: 39
L42: 40
L43: 41
L44: 42
L45: 43
L46: 44
L47: 45
L48: 46
L49: 47
L50: 48
L51: 49
L52: 50

Sheet 3 Variables
A1: Multivariate Linear Regression | M1: Enter the data values in the cells below:
N2: Y | O2: X1 | P2: X2 | Q2: X3
B3: This DIGMath module lets you find the best | M3: 1 | N3: 1 | O3: 6 | P3: 55 | Q3: 88
B4: multivariate linear fit -- the regression "plane" -- | M4: 2 | N4: 15 | O4: 8 | P4: 53 | Q4: 84
C5: to fit a set of (X1, X2, X3, Y) data | M5: 3 | N5: 32 | O5: 11 | P5: 56 | Q5: 77
C6: with 3 independent variables. | M6: 4 | N6: 46 | O6: 21 | P6: 59 | Q6: 72
M7: 5 | N7: 60 | O7: 17 | P7: 63 | Q7: 67
A8: How many data points, n, between 3 and 50? | M8: 6 | N8: 74 | O8: 25 | P8: 67 | Q8: 64
B9: n = | C9: =E9 -> 11 | E9: 11 | M9: 7 | N9: 91 | O9: 29 | P9: 72 | Q9: 61
M10: 8 | N10: 105 | O10: 31 | P10: 77 | Q10: 56
M11: 9 | N11: 121 | O11: 27 | P11: 81 | Q11: 51
A12: Based on your data, | M12: 10 | N12: 135 | O12: 37 | P12: 84 | Q12: 44
A13: the equation of the multivariate regression equation is | M13: 11 | N13: 152 | O13: 41 | P13: 89 | Q13: 38
M14: 12 | N14: 196 | O14: 48 | P14: 98 | Q14: 36
B15: Y = | C15: =aa -> 0.2231716455 | D15: X1 | E15: =IF(bb>=0,"+","-") -> + | F15: =ABS(bb) -> 1.092945086 | G15: X2 | H15: =IF(cc>=0,"+","-") -> - | I15: =ABS(cc) -> 2.108187893 | J15: X3 | K15: =IF(dd>=0,"+","-") -> + | L15: =ABS(dd) -> 129.9289991 | M15: 13 | N15: 213 | O15: 55 | P15: 99 | Q15: 32
M16: 14 | N16: 227 | O16: 51 | P16: 98 | Q16: 29
M17: 15 | N17: 244 | O17: 63 | P17: 94 | Q17: 25
A18: The Sum of the Squares = | F18: =sss -> 97.44473989 | M18: 16 | N18: 258 | O18: 69 | P18: 90 | Q18: 22
M19: 17 | N19: 274 | O19: 75 | P19: 85 | Q19: 17
M20: 18 | N20: 288 | O20: 80 | P20: 80 | Q20: 14
B21: The coefficient of multiple determination = | I21: =Sheet2!P64 -> 0.996068961 | M21: 19 | N21: 305 | O21: 88 | P21: 72 | Q21: 11
C22: so that | D22: =100*I21 -> 99.6068961 | E22: % of the variation is | M22: 20 | N22: 319 | O22: 93 | P22: 66 | Q22: 10
F23: explained by the linear function | M23: 21 | N23: 335 | O23: 97 | P23: 61 | Q23: 7
M24: 22 | N24: 349 | O24: 103 | P24: 58 | Q24: 3
M25: 23
M26: 24
A27: Click each item below for suggestions and investigations | M27: 25
C28: Item 1 | M28: 26
C29: Item 2 | M29: 27
C30: Item 3 | M30: 28
M31: 29
M32: 30
M33: 31
M34: 32
M35: 33
M36: 34
M37: 35
M38: 36
M39: 37
M40: 38
M41: 39
M42: 40
A43: Click each item below for suggestions and investigations | M43: 41
D44: Item 1 | M44: 42
D45: Item 2 | M45: 43
D46: Item 3 | M46: 44
D47: Item 4 | M47: 45
M48: 46
B49: Created by: Sheldon P. Gordon | M49: 47
B50: Farmingdale StateCollege | M50: 48
B51: Development of this module was supported by the | M51: 49
B52: NSF's Division of Undergraduate Education | M52: 50
B53: under grants DUE-0310123 and DUE-0442160.

Sheet Sheet2
A1: n | B1: Y | C1: X1 | D1: X2 | E1: X1^2 | F1: X2^2 | G1: X1*Y | H1: X2*Y | I1: X1*X2 | J1: Squares | K1: (yi - ybar)^2 | L1: Crit Value | N1: n | O1: Y | P1: X1 | Q1: X2 | R1: X3 | S1: X1^2 | T1: X2^2 | U1: X3^2 | V1: X1*Y | W1: X2*Y | X1: X3*Y | Y1: X1*X2 | Z1: X1*X3 | AA1: X2*X3 | AB1: Squares | AC1: (yi - ybar)^2 | AD1: Crit Value
A2: 1 | B2: =IF(A2<=n,'2 Variables'!M3,"") -> 1 | C2: =IF($A2<=n,'2 Variables'!N3,"") -> 6 | D2: =IF($A2<=n,'2 Variables'!O3,"") -> 55 | E2: =C2^2 -> 36 | F2: =D2^2 -> 3025 | G2: =B2*C2 -> 6 | H2: =D2*B2 -> 55 | I2: =IF(A2<=n,C2*D2,"") -> 330 | J2: =IF(A2<=n,(a*C2+b*D2+c0-B2)^2,"") -> 4.966336684 | K2: =IF(A2<=n,(B2-ybar)^2,"") -> 19506.77778 | N2: 1 | O2: =IF(N2<=nn,'3 Variables'!N3,"") -> 1 | P2: =IF($N2<=nn,'3 Variables'!O3,"") -> 6 | Q2: =IF($N2<=nn,'3 Variables'!P3,"") -> 55 | R2: =IF($N2<=nn,'3 Variables'!Q3,"") -> 88 | S2: =P2^2 -> 36 | T2: 3025 | U2: 7744 | V2: =O2*P2 -> 6 | W2: =Q2*O2 -> 55 | X2: =R2*O2 -> 88 | Y2: =IF($N2<=n,P2*Q2,"") -> 330 | Z2: =IF($N2<=n,P2*R2,"") -> 528 | AA2: =IF($N2<=n,Q2*R2,"") -> 4840 | AB2: =IF(N2<=nn,(aa*P2+bb*Q2+cc*R2+dd-O2)^2,"") -> 23.61448827 | AC2: =IF(N2<=nn,(O2-yybar)^2,"") -> 5570.586777
A3: 2 | B3: =IF(A3<=n,'2 Variables'!M4,"") -> 15 | C3: =IF($A3<=n,'2 Variables'!N4,"") -> 8 | D3: =IF($A3<=n,'2 Variables'!O4,"") -> 53 | E3: =C3^2 -> 64 | F3: =D3^2 -> 2809 | G3: =B3*C3 -> 120 | H3: =D3*B3 -> 795 | I3: 424 | J3: 54.90432952 | K3: 15792.11111 | N3: 2 | O3: =IF(N3<=nn,'3 Variables'!N4,"") -> 15 | P3: =IF($N3<=nn,'3 Variables'!O4,"") -> 8 | Q3: =IF($N3<=nn,'3 Variables'!P4,"") -> 53 | R3: =IF($N3<=nn,'3 Variables'!Q4,"") -> 84 | S3: 64 | T3: 2809 | U3: 7056 | V3: =O3*P3 -> 120 | W3: =Q3*O3 -> 795 | X3: =R3*O3 -> 1260 | Y3: =IF($N3<=n,P3*Q3,"") -> 424 | Z3: =IF($N3<=nn,P3*R3,"") -> 672 | AA3: =IF($N3<=nn,Q3*R3,"") -> 4452 | AB3: 5.989381225 | AC3: 3676.768595
A4: 3 | B4: =IF(A4<=n,'2 Variables'!M5,"") -> 32 | C4: =IF($A4<=n,'2 Variables'!N5,"") -> 11 | D4: =IF($A4<=n,'2 Variables'!O5,"") -> 56 | E4: =IF(A4<=n,C4^2,"") -> 121 | F4: =IF(A4<=n,D4^2,"") -> 3136 | G4: =IF(A4<=n,B4*C4,"") -> 352 | H4: =IF(A4<=n,D4*B4,"") -> 1792 | I4: 616 | J4: 113.698186 | K4: 11808.44444 | N4: 3 | O4: =IF(N4<=nn,'3 Variables'!N5,"") -> 32 | P4: =IF($N4<=nn,'3 Variables'!O5,"") -> 11 | Q4: =IF($N4<=nn,'3 Variables'!P5,"") -> 56 | R4: =IF($N4<=nn,'3 Variables'!Q5,"") -> 77 | S4: =IF(N4<=nn,P4^2,"") -> 121 | T4: =IF(N4<=nn,Q4^2,"") -> 3136 | U4: =IF($N4<=nn,R4^2,"") -> 5929 | V4: =IF(N4<=nn,O4*P4,"") -> 352 | W4: =IF(N4<=nn,Q4*O4,"") -> 1792 | X4: =IF($N4<=nn,R4*O4,"") -> 2464 | Y4: =IF($N4<=nn,P4*Q4,"") -> 616 | Z4: 847 | AA4: 4312 | AB4: 0.5500533106 | AC4: 1904.132231
A5: 4 | B5: =IF(A5<=n,'2 Variables'!M6,"") -> 46 | C5: =IF($A5<=n,'2 Variables'!N6,"") -> 21 | D5: =IF($A5<=n,'2 Variables'!O6,"") -> 59 | E5: 441 | F5: 3481 | G5: 966 | H5: 2714 | I5: 1239 | J5: 162.6859986 | K5: 8961.777778 | N5: 4 | O5: =IF(N5<=nn,'3 Variables'!N6,"") -> 46 | P5: =IF($N5<=nn,'3 Variables'!O6,"") -> 21 | Q5: =IF($N5<=nn,'3 Variables'!P6,"") -> 59 | R5: =IF($N5<=nn,'3 Variables'!Q6,"") -> 72 | S5: 441 | T5: 3481 | U5: 5184 | V5: 966 | W5: 2714 | X5: 3312 | Y5: 1239 | Z5: 1512 | AA5: 4248 | AB5: 1.715668741 | AC5: 878.3140496
A6: 5 | B6: =IF(A6<=n,'2 Variables'!M7,"") -> 60 | C6: =IF($A6<=n,'2 Variables'!N7,"") -> 17 | D6: =IF($A6<=n,'2 Variables'!O7,"") -> 63 | E6: 289 | F6: 3969 | G6: 1020 | H6: 3780 | I6: 1071 | J6: 99.37320215 | K6: 6507.111111 | N6: 5 | O6: =IF(N6<=nn,'3 Variables'!N7,"") -> 60 | P6: =IF($N6<=nn,'3 Variables'!O7,"") -> 17 | Q6: =IF($N6<=nn,'3 Variables'!P7,"") -> 63 | R6: =IF($N6<=nn,'3 Variables'!Q7,"") -> 67 | S6: 289 | T6: 3969 | U6: 4489 | V6: 1020 | W6: 3780 | X6: 4020 | Y6: 1071 | Z6: 1139 | AA6: 4221 | AB6: 1.768550528 | AC6: 244.4958678
A7: 6 | B7: =IF(A7<=n,'2 Variables'!M8,"") -> 74 | C7: =IF($A7<=n,'2 Variables'!N8,"") -> 25 | D7: =IF($A7<=n,'2 Variables'!O8,"") -> 67 | E7: 625 | F7: 4489 | G7: 1850 | H7: 4958 | I7: 1675 | J7: 62.20061293 | K7: 4444.444444 | N7: 6 | O7: =IF(N7<=nn,'3 Variables'!N8,"") -> 74 | P7: =IF($N7<=nn,'3 Variables'!O8,"") -> 25 | Q7: =IF($N7<=nn,'3 Variables'!P8,"") -> 67 | R7: =IF($N7<=nn,'3 Variables'!Q8,"") -> 64 | S7: 625 | T7: 4489 | U7: 4096 | V7: 1850 | W7: 4958 | X7: 4736 | Y7: 1675 | Z7: 1600 | AA7: 4288 | AB7: 0.03549991123 | AC7: 2.67768595
A8: 7 | B8: =IF(A8<=n,'2 Variables'!M9,"") -> 91 | C8: =IF($A8<=n,'2 Variables'!N9,"") -> 29 | D8: =IF($A8<=n,'2 Variables'!O9,"") -> 72 | E8: 841 | F8: 5184 | G8: 2639 | H8: 6552 | I8: 2088 | J8: 108.5039001 | K8: 2466.777778 | N8: 7 | O8: =IF(N8<=nn,'3 Variables'!N9,"") -> 91 | P8: =IF($N8<=nn,'3 Variables'!O9,"") -> 29 | Q8: =IF($N8<=nn,'3 Variables'!P9,"") -> 72 | R8: =IF($N8<=nn,'3 Variables'!Q9,"") -> 61 | S8: 841 | T8: 5184 | U8: 3721 | V8: 2639 | W8: 6552 | X8: 5551 | Y8: 2088 | Z8: 1769 | AA8: 4392 | AB8: 20.30798806 | AC8: 236.0413223
A9: 8 | B9: =IF(A9<=n,'2 Variables'!M10,"") -> 105 | C9: =IF($A9<=n,'2 Variables'!N10,"") -> 31 | D9: =IF($A9<=n,'2 Variables'!O10,"") -> 77 | E9: 961 | F9: 5929 | G9: 3255 | H9: 8085 | I9: 2387 | J9: 84.33063257 | K9: 1272.111111 | N9: 8 | O9: =IF(N9<=nn,'3 Variables'!N10,"") -> 105 | P9: =IF($N9<=nn,'3 Variables'!O10,"") -> 31 | Q9: =IF($N9<=nn,'3 Variables'!P10,"") -> 77 | R9: =IF($N9<=nn,'3 Variables'!Q10,"") -> 56 | S9: 961 | T9: 5929 | U9: 3136 | V9: 3255 | W9: 8085 | X9: 5880 | Y9: 2387 | Z9: 1736 | AA9: 4312 | AB9: 4.22068397 | AC9: 862.2231405
A10: 9 | B10: =IF(A10<=n,'2 Variables'!M11,"") -> 121 | C10: =IF($A10<=n,'2 Variables'!N11,"") -> 27 | D10: =IF($A10<=n,'2 Variables'!O11,"") -> 81 | E10: 729 | F10: 6561 | G10: 3267 | H10: 9801 | I10: 2187 | J10: 241.5003599 | K10: 386.7777778 | N10: 9 | O10: =IF(N10<=nn,'3 Variables'!N11,"") -> 121 | P10: =IF($N10<=nn,'3 Variables'!O11,"") -> 27 | Q10: =IF($N10<=nn,'3 Variables'!P11,"") -> 81 | R10: =IF($N10<=nn,'3 Variables'!Q11,"") -> 51 | S10: 729 | T10: 6561 | U10: 2601 | V10: 3267 | W10: 9801 | X10: 6171 | Y10: 2187 | Z10: 1377 | AA10: 4131 | AB10: 16.27635997 | AC10: 2057.859504
A11: 10 | B11: =IF(A11<=n,'2 Variables'!M12,"") -> 135 | C11: =IF($A11<=n,'2 Variables'!N12,"") -> 37 | D11: =IF($A11<=n,'2 Variables'!O12,"") -> 84 | E11: 1369 | F11: 7056 | G11: 4995 | H11: 11340 | I11: 3108 | J11: 62.0549348 | K11: 32.11111111 | N11: 10 | O11: =IF(N11<=nn,'3 Variables'!N12,"") -> 135 | P11: =IF($N11<=nn,'3 Variables'!O12,"") -> 37 | Q11: =IF($N11<=nn,'3 Variables'!P12,"") -> 84 | R11: =IF($N11<=nn,'3 Variables'!Q12,"") -> 44 | S11: 1369 | T11: 7056 | U11: 1936 | V11: 4995 | W11: 11340 | X11: 5940 | Y11: 3108 | Z11: 1628 | AA11: 3696 | AB11: 4.988387623 | AC11: 3524.041322
A12: 11 | B12: =IF(A12<=n,'2 Variables'!M13,"") -> 152 | C12: =IF($A12<=n,'2 Variables'!N13,"") -> 41 | D12: =IF($A12<=n,'2 Variables'!O13,"") -> 89 | E12: 1681 | F12: 7921 | G12: 6232 | H12: 13528 | I12: 3649 | J12: 108.3114662 | K12: 128.4444444 | N12: 11 | O12: =IF(N12<=nn,'3 Variables'!N13,"") -> 152 | P12: =IF($N12<=nn,'3 Variables'!O13,"") -> 41 | Q12: =IF($N12<=nn,'3 Variables'!P13,"") -> 89 | R12: =IF($N12<=nn,'3 Variables'!Q13,"") -> 38 | S12: 1681 | T12: 7921 | U12: 1444 | V12: 6232 | W12: 13528 | X12: 5776 | Y12: 3649 | Z12: 1558 | AA12: 3382 | AB12: 17.97767827 | AC12: 5831.404959
A13: 12 | B13: =IF(A13<=n,'2 Variables'!M14,"") -> 196 | C13: =IF($A13<=n,'2 Variables'!N14,"") -> 48 | D13: =IF($A13<=n,'2 Variables'!O14,"") -> 98 | E13: 2304 | F13: 9604 | G13: 9408 | H13: 19208 | I13: 4704 | J13: 0.7824771347 | K13: 3061.777778 | N13: 12 | O13: =IF(N13<=nn,'3 Variables'!N14,"") ->  | P13: =IF($N13<=nn,'3 Variables'!O14,"") ->  | Q13: =IF($N13<=nn,'3 Variables'!P14,"") ->  | R13: =IF($N13<=nn,'3 Variables'!Q14,"") -> 
A14: 13 | B14: =IF(A14<=n,'2 Variables'!M15,"") -> 213 | C14: =IF($A14<=n,'2 Variables'!N15,"") -> 55 | D14: =IF($A14<=n,'2 Variables'!O15,"") -> 99 | E14: 3025 | F14: 9801 | G14: 11715 | H14: 21087 | I14: 5445 | J14: 76.67187387 | K14: 5232.111111 | N14: 13 | O14: =IF(N14<=nn,'3 Variables'!N15,"") ->  | P14: =IF($N14<=nn,'3 Variables'!O15,"") ->  | Q14: =IF($N14<=nn,'3 Variables'!P15,"") ->  | R14: =IF($N14<=nn,'3 Variables'!Q15,"") -> 
A15: 14 | B15: =IF(A15<=n,'2 Variables'!M16,"") -> 227 | C15: =IF($A15<=n,'2 Variables'!N16,"") -> 51 | D15: =IF($A15<=n,'2 Variables'!O16,"") -> 98 | E15: 2601 | F15: 9604 | G15: 11577 | H15: 22246 | I15: 4998 | J15: 398.8297584 | K15: 7453.444444 | N15: 14 | O15: =IF(N15<=nn,'3 Variables'!N16,"") ->  | P15: =IF($N15<=nn,'3 Variables'!O16,"") ->  | Q15: =IF($N15<=nn,'3 Variables'!P16,"") ->  | R15: =IF($N15<=nn,'3 Variables'!Q16,"") -> 
A16: 15 | B16: =IF(A16<=n,'2 Variables'!M17,"") -> 244 | C16: =IF($A16<=n,'2 Variables'!N17,"") -> 63 | D16: =IF($A16<=n,'2 Variables'!O17,"") -> 94 | E16: 3969 | F16: 8836 | G16: 15372 | H16: 22936 | I16: 5922 | J16: 1.427393972 | K16: 10677.77778 | N16: 15 | O16: =IF(N16<=nn,'3 Variables'!N17,"") ->  | P16: =IF($N16<=nn,'3 Variables'!O17,"") ->  | Q16: =IF($N16<=nn,'3 Variables'!P17,"") ->  | R16: =IF($N16<=nn,'3 Variables'!Q17,"") -> 
A17: 16 | B17: =IF(A17<=n,'2 Variables'!M18,"") -> 258 | C17: =IF($A17<=n,'2 Variables'!N18,"") -> 69 | D17: =IF($A17<=n,'2 Variables'!O18,"") -> 90 | E17: 4761 | F17: 8100 | G17: 17802 | H17: 23220 | I17: 6210 | J17: 0.0851766916 | K17: 13767.11111 | N17: 16 | O17: =IF(N17<=nn,'3 Variables'!N18,"") ->  | P17: =IF($N17<=nn,'3 Variables'!O18,"") ->  | Q17: =IF($N17<=nn,'3 Variables'!P18,"") ->  | R17: =IF($N17<=nn,'3 Variables'!Q18,"") -> 
A18: 17 | B18: =IF(A18<=n,'2 Variables'!M19,"") -> 274 | C18: =IF($A18<=n,'2 Variables'!N19,"") -> 75 | D18: =IF($A18<=n,'2 Variables'!O19,"") -> 85 | E18: 5625 | F18: 7225 | G18: 20550 | H18: 23290 | I18: 6375 | J18: 2.022842228 | K18: 17777.77778 | N18: 17 | O18: =IF(N18<=nn,'3 Variables'!N19,"") ->  | P18: =IF($N18<=nn,'3 Variables'!O19,"") ->  | Q18: =IF($N18<=nn,'3 Variables'!P19,"") ->  | R18: =IF($N18<=nn,'3 Variables'!Q19,"") -> 
A19: 18 | B19: =IF(A19<=n,'2 Variables'!M20,"") -> 288 | C19: =IF($A19<=n,'2 Variables'!N20,"") -> 80 | D19: =IF($A19<=n,'2 Variables'!O20,"") -> 80 | E19: 6400 | F19: 6400 | G19: 23040 | H19: 23040 | I19: 6400 | J19: 20.41187511 | K19: 21707.11111 | N19: 18 | O19: =IF(N19<=nn,'3 Variables'!N20,"") ->  | P19: =IF($N19<=nn,'3 Variables'!O20,"") ->  | Q19: =IF($N19<=nn,'3 Variables'!P20,"") ->  | R19: =IF($N19<=nn,'3 Variables'!Q20,"") -> 
A20: 19 | B20: =IF(A20<=n,'2 Variables'!M21,"") ->  | C20: =IF($A20<=n,'2 Variables'!N21,"") ->  | D20: =IF($A20<=n,'2 Variables'!O21,"") ->  | N20: 19 | O20: =IF(N20<=nn,'3 Variables'!N21,"") ->  | P20: =IF($N20<=nn,'3 Variables'!O21,"") ->  | Q20: =IF($N20<=nn,'3 Variables'!P21,"") ->  | R20: =IF($N20<=nn,'3 Variables'!Q21,"") -> 
A21: 20 | B21: =IF(A21<=n,'2 Variables'!M22,"") ->  | C21: =IF($A21<=n,'2 Variables'!N22,"") ->  | D21: =IF($A21<=n,'2 Variables'!O22,"") ->  | N21: 20 | O21: =IF(N21<=nn,'3 Variables'!N22,"") ->  | P21: =IF($N21<=nn,'3 Variables'!O22,"") ->  | Q21: =IF($N21<=nn,'3 Variables'!P22,"") ->  | R21: =IF($N21<=nn,'3 Variables'!Q22,"") -> 
A22: 21 | B22: =IF(A22<=n,'2 Variables'!M23,"") ->  | C22: =IF($A22<=n,'2 Variables'!N23,"") ->  | D22: =IF($A22<=n,'2 Variables'!O23,"") ->  | N22: 21 | O22: =IF(N22<=nn,'3 Variables'!N23,"") ->  | P22: =IF($N22<=nn,'3 Variables'!O23,"") ->  | Q22: =IF($N22<=nn,'3 Variables'!P23,"") ->  | R22: =IF($N22<=nn,'3 Variables'!Q23,"") -> 
A23: 22 | B23: =IF(A23<=n,'2 Variables'!M24,"") ->  | C23: =IF($A23<=n,'2 Variables'!N24,"") ->  | D23: =IF($A23<=n,'2 Variables'!O24,"") ->  | N23: 22 | O23: =IF(N23<=nn,'3 Variables'!N24,"") ->  | P23: =IF($N23<=nn,'3 Variables'!O24,"") ->  | Q23: =IF($N23<=nn,'3 Variables'!P24,"") ->  | R23: =IF($N23<=nn,'3 Variables'!Q24,"") -> 
A24: 23 | B24: =IF(A24<=n,'2 Variables'!M25,"") ->  | C24: =IF($A24<=n,'2 Variables'!N25,"") ->  | D24: =IF($A24<=n,'2 Variables'!O25,"") ->  | N24: 23 | O24: =IF(N24<=nn,'3 Variables'!N25,"") ->  | P24: =IF($N24<=nn,'3 Variables'!O25,"") ->  | Q24: =IF($N24<=nn,'3 Variables'!P25,"") ->  | R24: =IF($N24<=nn,'3 Variables'!Q25,"") -> 
A25: 24 | B25: =IF(A25<=n,'2 Variables'!M26,"") ->  | C25: =IF($A25<=n,'2 Variables'!N26,"") ->  | D25: =IF($A25<=n,'2 Variables'!O26,"") ->  | N25: 24 | O25: =IF(N25<=nn,'3 Variables'!N26,"") ->  | P25: =IF($N25<=nn,'3 Variables'!O26,"") ->  | Q25: =IF($N25<=nn,'3 Variables'!P26,"") ->  | R25: =IF($N25<=nn,'3 Variables'!Q26,"") -> 
A26: 25 | B26: =IF(A26<=n,'2 Variables'!M27,"") ->  | C26: =IF($A26<=n,'2 Variables'!N27,"") ->  | D26: =IF($A26<=n,'2 Variables'!O27,"") ->  | N26: 25 | O26: =IF(N26<=nn,'3 Variables'!N27,"") ->  | P26: =IF($N26<=nn,'3 Variables'!O27,"") ->  | Q26: =IF($N26<=nn,'3 Variables'!P27,"") ->  | R26: =IF($N26<=nn,'3 Variables'!Q27,"") -> 
A27: 26 | B27: =IF(A27<=n,'2 Variables'!M28,"") ->  | C27: =IF($A27<=n,'2 Variables'!N28,"") ->  | D27: =IF($A27<=n,'2 Variables'!O28,"") ->  | N27: 26 | O27: =IF(N27<=nn,'3 Variables'!N28,"") ->  | P27: =IF($N27<=nn,'3 Variables'!O28,"") ->  | Q27: =IF($N27<=nn,'3 Variables'!P28,"") ->  | R27: =IF($N27<=nn,'3 Variables'!Q28,"") -> 
A28: 27 | B28: =IF(A28<=n,'2 Variables'!M29,"") ->  | C28: =IF($A28<=n,'2 Variables'!N29,"") ->  | D28: =IF($A28<=n,'2 Variables'!O29,"") ->  | N28: 27 | O28: =IF(N28<=nn,'3 Variables'!N29,"") ->  | P28: =IF($N28<=nn,'3 Variables'!O29,"") ->  | Q28: =IF($N28<=nn,'3 Variables'!P29,"") ->  | R28: =IF($N28<=nn,'3 Variables'!Q29,"") -> 
A29: 28 | B29: =IF(A29<=n,'2 Variables'!M30,"") ->  | C29: =IF($A29<=n,'2 Variables'!N30,"") ->  | D29: =IF($A29<=n,'2 Variables'!O30,"") ->  | N29: 28 | O29: =IF(N29<=nn,'3 Variables'!N30,"") ->  | P29: =IF($N29<=nn,'3 Variables'!O30,"") ->  | Q29: =IF($N29<=nn,'3 Variables'!P30,"") ->  | R29: =IF($N29<=nn,'3 Variables'!Q30,"") -> 
A30: 29 | B30: =IF(A30<=n,'2 Variables'!M31,"") ->  | C30: =IF($A30<=n,'2 Variables'!N31,"") ->  | D30: =IF($A30<=n,'2 Variables'!O31,"") ->  | N30: 29 | O30: =IF(N30<=nn,'3 Variables'!N31,"") ->  | P30: =IF($N30<=nn,'3 Variables'!O31,"") ->  | Q30: =IF($N30<=nn,'3 Variables'!P31,"") ->  | R30: =IF($N30<=nn,'3 Variables'!Q31,"") -> 
A31: 30 | B31: =IF(A31<=n,'2 Variables'!M32,"") ->  | C31: =IF($A31<=n,'2 Variables'!N32,"") ->  | D31: =IF($A31<=n,'2 Variables'!O32,"") ->  | N31: 30 | O31: =IF(N31<=nn,'3 Variables'!N32,"") ->  | P31: =IF($N31<=nn,'3 Variables'!O32,"") ->  | Q31: =IF($N31<=nn,'3 Variables'!P32,"") ->  | R31: =IF($N31<=nn,'3 Variables'!Q32,"") -> 
A32: 31 | B32: =IF(A32<=n,'2 Variables'!M33,"") ->  | C32: =IF($A32<=n,'2 Variables'!N33,"") ->  | D32: =IF($A32<=n,'2 Variables'!O33,"") ->  | N32: 31 | O32: =IF(N32<=nn,'3 Variables'!N33,"") ->  | P32: =IF($N32<=nn,'3 Variables'!O33,"") ->  | Q32: =IF($N32<=nn,'3 Variables'!P33,"") ->  | R32: =IF($N32<=nn,'3 Variables'!Q33,"") -> 
A33: 32 | B33: =IF(A33<=n,'2 Variables'!M34,"") ->  | C33: =IF($A33<=n,'2 Variables'!N34,"") ->  | D33: =IF($A33<=n,'2 Variables'!O34,"") ->  | N33: 32 | O33: =IF(N33<=nn,'3 Variables'!N34,"") ->  | P33: =IF($N33<=nn,'3 Variables'!O34,"") ->  | Q33: =IF($N33<=nn,'3 Variables'!P34,"") ->  | R33: =IF($N33<=nn,'3 Variables'!Q34,"") -> 
A34: 33 | B34: =IF(A34<=n,'2 Variables'!M35,"") ->  | C34: =IF($A34<=n,'2 Variables'!N35,"") ->  | D34: =IF($A34<=n,'2 Variables'!O35,"") ->  | I34: =IF(A34<=n,C34*D34,"") ->  | J34: =IF(A34<=n,(a*C34+b*D34+c0-B34)^2,"") ->  | K34: =IF(A34<=n,(B34-ybar)^2,"") ->  | N34: 33 | O34: =IF(N34<=nn,'3 Variables'!N35,"") ->  | P34: =IF($N34<=nn,'3 Variables'!O35,"") ->  | Q34: =IF($N34<=nn,'3 Variables'!P35,"") ->  | R34: =IF($N34<=nn,'3 Variables'!Q35,"") ->  | AB34: =IF(N34<=nn,(aa*P34+bb*Q34+cc*R34+dd-O34)^2,"") ->  | AC34: =IF(N34<=nn,(O34-yybar)^2,"") -> 
A35: 34 | B35: =IF(A35<=n,'2 Variables'!M36,"") ->  | C35: =IF($A35<=n,'2 Variables'!N36,"") ->  | D35: =IF($A35<=n,'2 Variables'!O36,"") ->  | N35: 34 | O35: =IF(N35<=nn,'3 Variables'!N36,"") ->  | P35: =IF($N35<=nn,'3 Variables'!O36,"") ->  | Q35: =IF($N35<=nn,'3 Variables'!P36,"") ->  | R35: =IF($N35<=nn,'3 Variables'!Q36,"") ->  | Z35: =IF($N35<=nn,P35*R35,"") ->  | AA35: =IF($N35<=nn,Q35*R35,"") -> 
A36: 35 | B36: =IF(A36<=n,'2 Variables'!M37,"") ->  | C36: =IF($A36<=n,'2 Variables'!N37,"") ->  | D36: =IF($A36<=n,'2 Variables'!O37,"") ->  | N36: 35 | O36: =IF(N36<=nn,'3 Variables'!N37,"") ->  | P36: =IF($N36<=nn,'3 Variables'!O37,"") ->  | Q36: =IF($N36<=nn,'3 Variables'!P37,"") ->  | R36: =IF($N36<=nn,'3 Variables'!Q37,"") -> 
A37: 36 | B37: =IF(A37<=n,'2 Variables'!M38,"") ->  | C37: =IF($A37<=n,'2 Variables'!N38,"") ->  | D37: =IF($A37<=n,'2 Variables'!O38,"") ->  | N37: 36 | O37: =IF(N37<=nn,'3 Variables'!N38,"") ->  | P37: =IF($N37<=nn,'3 Variables'!O38,"") ->  | Q37: =IF($N37<=nn,'3 Variables'!P38,"") ->  | R37: =IF($N37<=nn,'3 Variables'!Q38,"") -> 
A38: 37 | B38: =IF(A38<=n,'2 Variables'!M39,"") ->  | C38: =IF($A38<=n,'2 Variables'!N39,"") ->  | D38: =IF($A38<=n,'2 Variables'!O39,"") ->  | N38: 37 | O38: =IF(N38<=nn,'3 Variables'!N39,"") ->  | P38: =IF($N38<=nn,'3 Variables'!O39,"") ->  | Q38: =IF($N38<=nn,'3 Variables'!P39,"") ->  | R38: =IF($N38<=nn,'3 Variables'!Q39,"") -> 
A39: 38 | B39: =IF(A39<=n,'2 Variables'!M40,"") ->  | C39: =IF($A39<=n,'2 Variables'!N40,"") ->  | D39: =IF($A39<=n,'2 Variables'!O40,"") ->  | N39: 38 | O39: =IF(N39<=nn,'3 Variables'!N40,"") ->  | P39: =IF($N39<=nn,'3 Variables'!O40,"") ->  | Q39: =IF($N39<=nn,'3 Variables'!P40,"") ->  | R39: =IF($N39<=nn,'3 Variables'!Q40,"") -> 
A40: 39 | B40: =IF(A40<=n,'2 Variables'!M41,"") ->  | C40: =IF($A40<=n,'2 Variables'!N41,"") ->  | D40: =IF($A40<=n,'2 Variables'!O41,"") ->  | N40: 39 | O40: =IF(N40<=nn,'3 Variables'!N41,"") ->  | P40: =IF($N40<=nn,'3 Variables'!O41,"") ->  | Q40: =IF($N40<=nn,'3 Variables'!P41,"") ->  | R40: =IF($N40<=nn,'3 Variables'!Q41,"") -> 
A41: 40 | B41: =IF(A41<=n,'2 Variables'!M42,"") ->  | C41: =IF($A41<=n,'2 Variables'!N42,"") ->  | D41: =IF($A41<=n,'2 Variables'!O42,"") ->  | N41: 40 | O41: =IF(N41<=nn,'3 Variables'!N42,"") ->  | P41: =IF($N41<=nn,'3 Variables'!O42,"") ->  | Q41: =IF($N41<=nn,'3 Variables'!P42,"") ->  | R41: =IF($N41<=nn,'3 Variables'!Q42,"") -> 
A42: 41 | B42: =IF(A42<=n,'2 Variables'!M43,"") ->  | C42: =IF($A42<=n,'2 Variables'!N43,"") ->  | D42: =IF($A42<=n,'2 Variables'!O43,"") ->  | N42: 41 | O42: =IF(N42<=nn,'3 Variables'!N43,"") ->  | P42: =IF($N42<=nn,'3 Variables'!O43,"") ->  | Q42: =IF($N42<=nn,'3 Variables'!P43,"") ->  | R42: =IF($N42<=nn,'3 Variables'!Q43,"") -> 
A43: 42 | B43: =IF(A43<=n,'2 Variables'!M44,"") ->  | C43: =IF($A43<=n,'2 Variables'!N44,"") ->  | D43: =IF($A43<=n,'2 Variables'!O44,"") ->  | N43: 42 | O43: =IF(N43<=nn,'3 Variables'!N44,"") ->  | P43: =IF($N43<=nn,'3 Variables'!O44,"") ->  | Q43: =IF($N43<=nn,'3 Variables'!P44,"") ->  | R43: =IF($N43<=nn,'3 Variables'!Q44,"") -> 
A44: 43 | B44: =IF(A44<=n,'2 Variables'!M45,"") ->  | C44: =IF($A44<=n,'2 Variables'!N45,"") ->  | D44: =IF($A44<=n,'2 Variables'!O45,"") ->  | N44: 43 | O44: =IF(N44<=nn,'3 Variables'!N45,"") ->  | P44: =IF($N44<=nn,'3 Variables'!O45,"") ->  | Q44: =IF($N44<=nn,'3 Variables'!P45,"") ->  | R44: =IF($N44<=nn,'3 Variables'!Q45,"") -> 
A45: 44 | B45: =IF(A45<=n,'2 Variables'!M46,"") ->  | C45: =IF($A45<=n,'2 Variables'!N46,"") ->  | D45: =IF($A45<=n,'2 Variables'!O46,"") ->  | N45: 44 | O45: =IF(N45<=nn,'3 Variables'!N46,"") ->  | P45: =IF($N45<=nn,'3 Variables'!O46,"") ->  | Q45: =IF($N45<=nn,'3 Variables'!P46,"") ->  | R45: =IF($N45<=nn,'3 Variables'!Q46,"") -> 
A46: 45 | B46: =IF(A46<=n,'2 Variables'!M47,"") ->  | C46: =IF($A46<=n,'2 Variables'!N47,"") ->  | D46: =IF($A46<=n,'2 Variables'!O47,"") ->  | N46: 45 | O46: =IF(N46<=nn,'3 Variables'!N47,"") ->  | P46: =IF($N46<=nn,'3 Variables'!O47,"") ->  | Q46: =IF($N46<=nn,'3 Variables'!P47,"") ->  | R46: =IF($N46<=nn,'3 Variables'!Q47,"") -> 
A47: 46 | B47: =IF(A47<=n,'2 Variables'!M48,"") ->  | C47: =IF($A47<=n,'2 Variables'!N48,"") ->  | D47: =IF($A47<=n,'2 Variables'!O48,"") ->  | N47: 46 | O47: =IF(N47<=nn,'3 Variables'!N48,"") ->  | P47: =IF($N47<=nn,'3 Variables'!O48,"") ->  | Q47: =IF($N47<=nn,'3 Variables'!P48,"") ->  | R47: =IF($N47<=nn,'3 Variables'!Q48,"") -> 
A48: 47 | B48: =IF(A48<=n,'2 Variables'!M49,"") ->  | C48: =IF($A48<=n,'2 Variables'!N49,"") ->  | D48: =IF($A48<=n,'2 Variables'!O49,"") ->  | N48: 47 | O48: =IF(N48<=nn,'3 Variables'!N49,"") ->  | P48: =IF($N48<=nn,'3 Variables'!O49,"") ->  | Q48: =IF($N48<=nn,'3 Variables'!P49,"") ->  | R48: =IF($N48<=nn,'3 Variables'!Q49,"") -> 
A49: 48 | B49: =IF(A49<=n,'2 Variables'!M50,"") ->  | C49: =IF($A49<=n,'2 Variables'!N50,"") ->  | D49: =IF($A49<=n,'2 Variables'!O50,"") ->  | N49: 48 | O49: =IF(N49<=nn,'3 Variables'!N50,"") ->  | P49: =IF($N49<=nn,'3 Variables'!O50,"") ->  | Q49: =IF($N49<=nn,'3 Variables'!P50,"") ->  | R49: =IF($N49<=nn,'3 Variables'!Q50,"") -> 
A50: 49 | B50: =IF(A50<=n,'2 Variables'!M51,"") ->  | C50: =IF($A50<=n,'2 Variables'!N51,"") ->  | D50: =IF($A50<=n,'2 Variables'!O51,"") ->  | N50: 49 | O50: =IF(N50<=nn,'3 Variables'!N51,"") ->  | P50: =IF($N50<=nn,'3 Variables'!O51,"") ->  | Q50: =IF($N50<=nn,'3 Variables'!P51,"") ->  | R50: =IF($N50<=nn,'3 Variables'!Q51,"") -> 
A51: 50 | B51: =IF(A51<=n,'2 Variables'!M52,"") ->  | C51: =IF($A51<=n,'2 Variables'!N52,"") ->  | D51: =IF($A51<=n,'2 Variables'!O52,"") ->  | N51: 50 | O51: =IF(N51<=nn,'3 Variables'!N52,"") ->  | P51: =IF($N51<=nn,'3 Variables'!O52,"") ->  | Q51: =IF($N51<=nn,'3 Variables'!P52,"") ->  | R51: =IF($N51<=nn,'3 Variables'!Q52,"") -> 
B53: =SUM(B2:B51) -> 2532 | C53: =SUM(C2:C51) -> 694 | D53: 1400 | E53: 35842 | F53: 113130 | G53: 134166 | H53: 218427 | I53: 58828 | J53: =SUM(J2:J51) -> 1602.761357 | K53: =SUM(K2:K51) -> 150984 | O53: =SUM(O2:O51) -> 832 | P53: =SUM(P2:P51) -> 253 | Q53: 756 | R53: =SUM(R2:R51) -> 702 | S53: 7157 | T53: 53560 | U53: =SUM(U2:U51) -> 47336 | V53: 24702 | W53: 63400 | X53: =SUM(X2:X51) -> 45198 | Y53: 18774 | Z53: =SUM(Z2:Z51) -> 14366 | AA53: =SUM(AA2:AA51) -> 46274 | AB53: =SUM(AB2:AB51) -> 97.44473989 | AC53: =SUM(AC2:AC51) -> 24788.54545
B54: sum Y | C54: sum X1 | D54: sum X2 | E54: sum X1^2 | F54: sum X2^2 | G54: sum X1*Y | H54: sum X2*Y | I54: sum X1*X2 | J54: sum squares | O54: sum Y | P54: sum X1 | Q54: sum X2 | R54: sum X3 | S54: sum X1^2 | T54: sum X2^2 | U54: sum X3^2 | V54: sum X1*Y | W54: sum X2*Y | X54: sum X3*Y | Y54: sum X1*X2 | Z54: sum X1*X3 | AA54: sum X2*X3 | AB54: sum squares
B57: =E53 -> 35842 | C57: =I53 -> 58828 | D57: =C53 -> 694 | F57: =G53 -> 134166 | H57: =MMULT(MINVERSE(B57:D59),F57:F59) -> 3.381566698 | O57: =S53 -> 7157 | P57: =Y53 -> 18774 | Q57: =Z53 -> 14366 | R57: =P53 -> 253 | T57: =V53 -> 24702 | W57: =MMULT(MINVERSE(O57:R60),T57:T60) -> 0.2231716455
B58: =I53 -> 58828 | C58: =F53 -> 113130 | D58: =D53 -> 1400 | F58: =H53 -> 218427 | H58: 1.200703446 | O58: =Y53 -> 18774 | P58: =T53 -> 53560 | Q58: =AA53 -> 46274 | R58: =Q53 -> 756 | T58: =W53 -> 63400 | W58: 1.092945086
B59: =C53 -> 694 | C59: =D53 -> 1400 | D59: =n -> 18 | F59: =B53 -> 2532 | H59: -83.09956177 | O59: =Z53 -> 14366 | P59: =AA53 -> 46274 | Q59: =U53 -> 47336 | R59: =R53 -> 702 | T59: =X53 -> 45198 | W59: -2.108187893
O60: =P53 -> 253 | P60: =Q53 -> 756 | Q60: =R53 -> 702 | R60: =nn -> 11 | T60: =O53 -> 832 | W60: 129.9289991
B62: y bar = | C62: =AVERAGE(B2:B51) -> 140.6666667 | O62: y bar = | P62: =AVERAGE(O2:O51) -> 75.63636364
B64: r2 = | C64: =1-SS/K53 -> 0.9893845616 | O64: r2 = | P64: =1-sss/AC53 -> 0.996068961
